[Event "Titled Tuesday Blitz May 16 Late 2023"]
[White "ritanovikova"]
[Black "Arnold, Ken"]
[BlackFideId "2056836"]
[WhiteElo "2147"]
[BlackElo "2381"]
[Result "0-1"]
[Round "07"]
[TimeControl "180+2"]
[Date "2023.05.16"]
[WhiteClock "0:00:14"]
[BlackClock "0:00:09"]

1. e4 {[%clk 0:03:00]}  c6 {[%clk 0:02:59]} 2. d4 {[%clk 0:02:59]}  d5 {[%clk 0:03:00]} 3. exd5 {[%clk 0:03:00]}  cxd5 {[%clk 0:03:00]} 4. Bd3 {[%clk 0:03:01]}  Nf6 {[%clk 0:03:00]} 5. Nf3 {[%clk 0:03:02]}  Nc6 {[%clk 0:03:00]} 6. h3 {[%clk 0:03:01]}  g6 {[%clk 0:02:57]} 7. O-O {[%clk 0:03:01]}  Bg7 {[%clk 0:02:57]} 8. c3 {[%clk 0:02:59]}  O-O {[%clk 0:02:57]} 9. Bg5 {[%clk 0:02:59]}  Re8 {[%clk 0:02:55]} 10. Re1 {[%clk 0:02:59]}  Be6 {[%clk 0:02:53]} 11. Ne5 {[%clk 0:02:58]}  Nxe5 {[%clk 0:02:51]} 12. dxe5 {[%clk 0:02:58]}  Nd7 {[%clk 0:02:50]} 13. Bf4 {[%clk 0:02:56]}  Nc5 {[%clk 0:02:46]} 14. Bc2 {[%clk 0:02:54]}  Qc8 {[%clk 0:02:42]} 15. Kh2 {[%clk 0:02:54]}  Rd8 {[%clk 0:02:38]} 16. Nd2 {[%clk 0:02:44]}  Bf5 {[%clk 0:02:37]} 17. Nf3 {[%clk 0:02:42]}  Bxc2 {[%clk 0:02:36]} 18. Qxc2 {[%clk 0:02:43]}  Ne6 {[%clk 0:02:27]} 19. Bg3 {[%clk 0:02:42]}  d4 {[%clk 0:02:25]} 20. Rac1 {[%clk 0:02:37]}  Bh6 {[%clk 0:02:16]} 21. Rcd1 {[%clk 0:02:31]}  Qc4 {[%clk 0:02:09]} 22. Qb3 {[%clk 0:02:24]}  Qxb3 {[%clk 0:02:04]} 23. axb3 {[%clk 0:02:25]}  dxc3 {[%clk 0:01:53]} 24. bxc3 {[%clk 0:02:26]}  Nc5 {[%clk 0:01:51]} 25. Nd4 {[%clk 0:02:22]}  a6 {[%clk 0:01:34]} 26. Bh4 {[%clk 0:02:08]}  Rd7 {[%clk 0:01:27]} 27. e6 {[%clk 0:02:01]}  fxe6 {[%clk 0:01:24]} 28. b4 {[%clk 0:01:50]}  Na4 {[%clk 0:01:24]} 29. Nxe6 {[%clk 0:01:19]}  Rxd1 {[%clk 0:00:59]} 30. Rxd1 {[%clk 0:01:20]}  Nxc3 {[%clk 0:00:51]} 31. Rd7 {[%clk 0:01:20]}  b5 {[%clk 0:00:45]} 32. Bxe7 {[%clk 0:01:16]}  Re8 {[%clk 0:00:29]} 33. g3 {[%clk 0:01:08]}  Ne4 {[%clk 0:00:29]} 34. Nc7 {[%clk 0:01:06]}  Rc8 {[%clk 0:00:27]} 35. f3 {[%clk 0:00:50]}  Nd2 {[%clk 0:00:22]} 36. Kg2 {[%clk 0:00:45]}  Nc4 {[%clk 0:00:19]} 37. Bc5 {[%clk 0:00:43]}  a5 {[%clk 0:00:19]} 38. Nxb5 {[%clk 0:00:39]}  axb4 {[%clk 0:00:18]} 39. Bxb4 {[%clk 0:00:40]}  Ne5 {[%clk 0:00:18]} 40. Rc7 {[%clk 0:00:34]}  Rb8 {[%clk 0:00:17]} 41. Rc5 {[%clk 0:00:32]}  Nd3 {[%clk 0:00:17]} 42. Rc3 {[%clk 0:00:26]}  Nxb4 {[%clk 0:00:16]} 43. Nd6 {[%clk 0:00:26]}  Nd5 {[%clk 0:00:17]} 44. Rd3 {[%clk 0:00:26]}  Ne3+ {[%clk 0:00:17]} 45. Kf2 {[%clk 0:00:25]}  Rb2+ {[%clk 0:00:16]} 46. Ke1 {[%clk 0:00:24]}  Rh2 {[%clk 0:00:16]} 47. h4 {[%clk 0:00:23]}  Nf5 {[%clk 0:00:15]} 48. Nxf5 {[%clk 0:00:21]}  gxf5 {[%clk 0:00:15]} 49. f4 {[%clk 0:00:20]}  Kg7 {[%clk 0:00:14]} 50. Rd6 {[%clk 0:00:17]}  Rg2 {[%clk 0:00:13]} 51. Rd3 {[%clk 0:00:17]}  Kg6 {[%clk 0:00:12]} 52. Kf1 {[%clk 0:00:17]}  Rb2 {[%clk 0:00:11]} 53. Rd6+ {[%clk 0:00:15]}  Kh5 {[%clk 0:00:11]} 54. Rd5 {[%clk 0:00:14]}  Kg4 {[%clk 0:00:11]} 55. Rd7 {[%clk 0:00:13]}  Kf3 {[%clk 0:00:10]} 56. Rxh7 {[%clk 0:00:14]}  Rb1# {[%clk 0:00:09]} 0-1


[Site "https://www.chess.com"]

[Event "Titled Tuesday Blitz May 16 Late 2023"]
[White "KorolDimitriy75"]
[Black "Kostiukov, Alexandr"]
[BlackFideId "14108100"]
[WhiteElo "2439"]
[BlackElo "2202"]
[Result "0-1"]
[Round "07"]
[TimeControl "180+2"]
[Date "2023.05.16"]
[WhiteClock "0:00:00"]
[BlackClock "0:00:42"]

1. d4 {[%clk 0:03:00]}  g6 {[%clk 0:02:59]} 2. c4 {[%clk 0:03:00]}  Bg7 {[%clk 0:03:00]} 3. Nf3 {[%clk 0:03:00]}  d6 {[%clk 0:03:00]} 4. Nc3 {[%clk 0:03:00]}  e5 {[%clk 0:03:01]} 5. e4 {[%clk 0:02:59]}  exd4 {[%clk 0:03:01]} 6. Nxd4 {[%clk 0:03:00]}  Nc6 {[%clk 0:03:00]} 7. Be3 {[%clk 0:03:00]}  Nge7 {[%clk 0:03:01]} 8. Be2 {[%clk 0:03:00]}  O-O {[%clk 0:03:01]} 9. O-O {[%clk 0:03:00]}  f5 {[%clk 0:03:01]} 10. Nxc6 {[%clk 0:03:00]}  bxc6 {[%clk 0:03:01]} 11. Qd2 {[%clk 0:02:59]}  fxe4 {[%clk 0:02:59]} 12. Nxe4 {[%clk 0:02:59]}  Nf5 {[%clk 0:03:00]} 13. Bg5 {[%clk 0:02:47]}  Qe8 {[%clk 0:03:00]} 14. Bd3 {[%clk 0:02:46]}  Rb8 {[%clk 0:02:59]} 15. Rab1 {[%clk 0:02:38]}  Qf7 {[%clk 0:02:55]} 16. b3 {[%clk 0:01:52]}  h6 {[%clk 0:02:42]} 17. Bf4 {[%clk 0:01:28]}  g5 {[%clk 0:02:41]} 18. Bg3 {[%clk 0:01:11]}  Bd7 {[%clk 0:02:26]} 19. Rbd1 {[%clk 0:01:02]}  Kh8 {[%clk 0:02:09]} 20. Qa5 {[%clk 0:00:52]}  Rb7 {[%clk 0:01:18]} 21. Bb1 {[%clk 0:00:25]}  Bd4 {[%clk 0:01:11]} 22. Qa6 {[%clk 0:00:13]}  Rfb8 {[%clk 0:01:05]} 23. Nxg5 {[%clk 0:00:10]}  hxg5 {[%clk 0:01:03]} 24. Bxf5 {[%clk 0:00:10]}  Bxf5 {[%clk 0:00:50]} 25. Rxd4 {[%clk 0:00:09]}  Kg7 {[%clk 0:00:49]} 26. Qxc6 {[%clk 0:00:08]}  Kg6 {[%clk 0:00:49]} 27. Rd2 {[%clk 0:00:06]}  Rb6 {[%clk 0:00:49]} 28. Qd5 {[%clk 0:00:04]}  Qxd5 {[%clk 0:00:46]} 29. Rxd5 {[%clk 0:00:04]}  Re8 {[%clk 0:00:43]} 30. Rd2 {[%clk 0:00:03]}  Ra6 {[%clk 0:00:43]} 31. h3 {[%clk 0:00:03]}  Ra3 {[%clk 0:00:41]} 32. f3 {[%clk 0:00:00]}  a5 {[%clk 0:00:42]} 0-1


[Site "https://www.chess.com"]

[Event "Titled Tuesday Blitz May 16 Late 2023"]
[White "K2JW"]
[Black "ibove"]
[WhiteElo "2369"]
[BlackElo "2280"]
[Result "1-0"]
[Round "07"]
[TimeControl "180+2"]
[Date "2023.05.16"]
[WhiteClock "0:00:43"]
[BlackClock "0:01:55"]

1. d4 {[%clk 0:03:00]}  Nf6 {[%clk 0:02:58]} 2. c4 {[%clk 0:03:01]}  g6 {[%clk 0:02:58]} 3. Nc3 {[%clk 0:03:02]}  Bg7 {[%clk 0:02:57]} 4. e4 {[%clk 0:03:02]}  d6 {[%clk 0:02:58]} 5. Nf3 {[%clk 0:03:02]}  O-O {[%clk 0:02:58]} 6. Be2 {[%clk 0:03:02]}  Nc6 {[%clk 0:02:57]} 7. d5 {[%clk 0:03:02]}  Ne5 {[%clk 0:02:57]} 8. Nxe5 {[%clk 0:02:53]}  dxe5 {[%clk 0:02:58]} 9. Be3 {[%clk 0:02:54]}  b6 {[%clk 0:02:56]} 10. Qd2 {[%clk 0:02:45]}  Ng4 {[%clk 0:02:51]} 11. Bxg4 {[%clk 0:02:44]}  Bxg4 {[%clk 0:02:52]} 12. f3 {[%clk 0:02:43]}  Bd7 {[%clk 0:02:48]} 13. O-O-O {[%clk 0:02:41]}  a6 {[%clk 0:02:47]} 14. h4 {[%clk 0:02:39]}  b5 {[%clk 0:02:46]} 15. c5 {[%clk 0:02:40]}  b4 {[%clk 0:02:44]} 16. Ne2 {[%clk 0:02:40]}  Bb5 {[%clk 0:02:44]} 17. h5 {[%clk 0:02:32]}  f5 {[%clk 0:02:27]} 18. hxg6 {[%clk 0:02:29]}  hxg6 {[%clk 0:02:27]} 19. Bh6 {[%clk 0:02:07]}  f4 {[%clk 0:02:26]} 20. g4 {[%clk 0:01:55]}  a5 {[%clk 0:02:21]} 21. Ng1 {[%clk 0:01:41]}  c6 {[%clk 0:02:17]} 22. Qh2 {[%clk 0:01:33]}  Rf7 {[%clk 0:02:12]} 23. Bxg7 {[%clk 0:01:07]}  Rxg7 {[%clk 0:02:13]} 24. dxc6 {[%clk 0:00:58]}  Qc7 {[%clk 0:02:12]} 25. Qh8+ {[%clk 0:00:56]}  Kf7 {[%clk 0:02:11]} 26. Qxa8 {[%clk 0:00:56]}  Bxc6 {[%clk 0:02:11]} 27. Qd8 {[%clk 0:00:55]}  Qa7 {[%clk 0:02:07]} 28. Qb6 {[%clk 0:00:51]}  Qb7 {[%clk 0:02:06]} 29. Qxb7 {[%clk 0:00:47]}  Bxb7 {[%clk 0:02:07]} 30. Nh3 {[%clk 0:00:47]}  Ba6 {[%clk 0:02:03]} 31. Ng5+ {[%clk 0:00:45]}  Kf6 {[%clk 0:02:02]} 32. Nh7+ {[%clk 0:00:45]}  Kf7 {[%clk 0:02:02]} 33. Rd8 {[%clk 0:00:45]}  Bb5 {[%clk 0:02:02]} 34. Rf8+ {[%clk 0:00:45]}  Ke6 {[%clk 0:01:55]} 35. Rd1 {[%clk 0:00:43]} 1-0


[Site "https://www.chess.com"]

[Event "Titled Tuesday Blitz May 16 Late 2023"]
[White "Shapiro, Daniel"]
[Black "Escalante Ramirez, Rafael"]
[WhiteFideId "2001780"]
[BlackFideId "3900177"]
[WhiteElo "2360"]
[BlackElo "2250"]
[Result "1-0"]
[Round "07"]
[TimeControl "180+2"]
[Date "2023.05.16"]
[WhiteClock "0:00:18"]
[BlackClock "0:00:00"]

1. d4 {[%clk 0:03:00]}  Nf6 {[%clk 0:02:58]} 2. c4 {[%clk 0:03:00]}  e6 {[%clk 0:02:57]} 3. g3 {[%clk 0:03:00]}  Bb4+ {[%clk 0:02:55]} 4. Bd2 {[%clk 0:02:59]}  a5 {[%clk 0:02:54]} 5. Bg2 {[%clk 0:02:56]}  O-O {[%clk 0:02:48]} 6. Qc2 {[%clk 0:02:57]}  d6 {[%clk 0:02:40]} 7. Nf3 {[%clk 0:02:52]}  b6 {[%clk 0:02:34]} 8. Ng5 {[%clk 0:02:41]}  Ra7 {[%clk 0:02:32]} 9. Nc3 {[%clk 0:02:32]}  Bxc3 {[%clk 0:02:16]} 10. Bxc3 {[%clk 0:02:31]}  Bb7 {[%clk 0:02:16]} 11. e4 {[%clk 0:02:13]}  h6 {[%clk 0:02:10]} 12. Nh3 {[%clk 0:02:12]}  c5 {[%clk 0:01:59]} 13. O-O {[%clk 0:01:49]}  Nbd7 {[%clk 0:01:41]} 14. d5 {[%clk 0:01:45]}  e5 {[%clk 0:01:33]} 15. Rae1 {[%clk 0:01:43]}  Re8 {[%clk 0:01:27]} 16. f4 {[%clk 0:01:39]}  Ba6 {[%clk 0:01:09]} 17. Qd3 {[%clk 0:01:23]}  a4 {[%clk 0:01:02]} 18. Nf2 {[%clk 0:01:10]}  Rb7 {[%clk 0:00:58]} 19. f5 {[%clk 0:01:04]}  b5 {[%clk 0:00:58]} 20. b3 {[%clk 0:01:04]}  axb3 {[%clk 0:00:51]} 21. axb3 {[%clk 0:01:05]}  bxc4 {[%clk 0:00:51]} 22. bxc4 {[%clk 0:01:05]}  Nb6 {[%clk 0:00:46]} 23. Ba5 {[%clk 0:00:55]}  Qb8 {[%clk 0:00:33]} 24. Rc1 {[%clk 0:00:52]}  Nbd7 {[%clk 0:00:20]} 25. Rc3 {[%clk 0:00:48]}  Rb2 {[%clk 0:00:19]} 26. Ra1 {[%clk 0:00:33]}  Qb7 {[%clk 0:00:19]} 27. Rca3 {[%clk 0:00:29]}  Rb8 {[%clk 0:00:16]} 28. Be1 {[%clk 0:00:26]}  Ra8 {[%clk 0:00:08]} 29. g4 {[%clk 0:00:23]}  Nh7 {[%clk 0:00:07]} 30. h4 {[%clk 0:00:23]}  f6 {[%clk 0:00:05]} 31. Nd1 {[%clk 0:00:20]}  Nb6 {[%clk 0:00:04]} 32. Nxb2 {[%clk 0:00:19]}  Nd7 {[%clk 0:00:02]} 33. Nd1 {[%clk 0:00:19]}  Nb6 {[%clk 0:00:00]} 34. Ne3 {[%clk 0:00:18]} 1-0


[Site "https://www.chess.com"]

[Event "Titled Tuesday Blitz May 16 Late 2023"]
[White "mohsengabr2002"]
[Black "Horokoskii"]
[WhiteElo "2356"]
[BlackElo "2160"]
[Result "1-0"]
[Round "07"]
[TimeControl "180+2"]
[Date "2023.05.16"]
[WhiteClock "0:01:39"]
[BlackClock "0:00:12"]

1. e4 {[%clk 0:03:00]}  e6 {[%clk 0:02:58]} 2. d3 {[%clk 0:02:59]}  d5 {[%clk 0:02:57]} 3. Nd2 {[%clk 0:02:59]}  Nf6 {[%clk 0:02:57]} 4. g3 {[%clk 0:02:59]}  c5 {[%clk 0:02:44]} 5. Bg2 {[%clk 0:02:59]}  b5 {[%clk 0:02:44]} 6. Ngf3 {[%clk 0:02:58]}  a5 {[%clk 0:02:41]} 7. O-O {[%clk 0:02:58]}  Be7 {[%clk 0:02:40]} 8. e5 {[%clk 0:02:58]}  Nfd7 {[%clk 0:02:40]} 9. Re1 {[%clk 0:02:59]}  O-O {[%clk 0:02:38]} 10. Nf1 {[%clk 0:02:59]}  b4 {[%clk 0:02:38]} 11. h4 {[%clk 0:02:59]}  a4 {[%clk 0:02:38]} 12. a3 {[%clk 0:02:58]}  Qb6 {[%clk 0:02:36]} 13. N1h2 {[%clk 0:02:58]}  b3 {[%clk 0:02:34]} 14. c3 {[%clk 0:02:57]}  Ba6 {[%clk 0:02:24]} 15. h5 {[%clk 0:02:57]}  Rc8 {[%clk 0:02:21]} 16. h6 {[%clk 0:02:56]}  g6 {[%clk 0:02:20]} 17. Ng4 {[%clk 0:02:56]}  Kf8 {[%clk 0:02:19]} 18. Bg5 {[%clk 0:02:54]}  Qd8 {[%clk 0:02:11]} 19. Qd2 {[%clk 0:02:52]}  Kg8 {[%clk 0:01:58]} 20. Rad1 {[%clk 0:02:52]}  Nc6 {[%clk 0:01:56]} 21. Qf4 {[%clk 0:02:52]}  Qf8 {[%clk 0:01:39]} 22. Bxe7 {[%clk 0:02:51]}  Nxe7 {[%clk 0:01:37]} 23. Ng5 {[%clk 0:02:46]}  Nf5 {[%clk 0:01:32]} 24. c4 {[%clk 0:02:22]}  Bb7 {[%clk 0:01:24]} 25. cxd5 {[%clk 0:02:21]}  Bxd5 {[%clk 0:01:21]} 26. Bxd5 {[%clk 0:02:21]}  exd5 {[%clk 0:01:21]} 27. e6 {[%clk 0:02:20]}  fxe6 {[%clk 0:01:21]} 28. Rxe6 {[%clk 0:02:17]}  Re8 {[%clk 0:01:06]} 29. Rde1 {[%clk 0:02:05]}  Rxe6 {[%clk 0:01:04]} 30. Rxe6 {[%clk 0:01:58]}  Re8 {[%clk 0:01:03]} 31. Ra6 {[%clk 0:01:58]}  Re1+ {[%clk 0:00:51]} 32. Kg2 {[%clk 0:01:58]}  Nh4+ {[%clk 0:00:43]} 33. Kh3 {[%clk 0:01:49]}  Rh1+ {[%clk 0:00:28]} 34. Nh2 {[%clk 0:01:48]}  Qxh6 {[%clk 0:00:18]} 35. Ra8+ {[%clk 0:01:41]}  Nf8 {[%clk 0:00:15]} 36. Qf7+ {[%clk 0:01:40]}  Kh8 {[%clk 0:00:12]} 37. Rxf8+ {[%clk 0:01:39]} 1-0


[Site "https://www.chess.com"]

[Event "Titled Tuesday Blitz May 16 Late 2023"]
[White "Hoffmann, Asa"]
[Black "Curtis, John"]
[WhiteFideId "2001470"]
[BlackFideId "3200256"]
[WhiteElo "2117"]
[BlackElo "2203"]
[Result "1-0"]
[Round "07"]
[TimeControl "180+2"]
[Date "2023.05.16"]
[WhiteClock "0:02:05"]
[BlackClock "0:00:00"]

1. d4 {[%clk 0:02:49]}  Nf6 {[%clk 0:02:59]} 2. Bg5 {[%clk 0:02:43]}  e6 {[%clk 0:02:54]} 3. Nd2 {[%clk 0:02:42]}  d5 {[%clk 0:02:52]} 4. e3 {[%clk 0:02:42]}  c5 {[%clk 0:02:47]} 5. c3 {[%clk 0:02:41]}  Nc6 {[%clk 0:02:47]} 6. f4 {[%clk 0:02:41]}  Be7 {[%clk 0:02:41]} 7. Bd3 {[%clk 0:02:41]}  Nd7 {[%clk 0:02:32]} 8. Ngf3 {[%clk 0:02:40]}  Bxg5 {[%clk 0:02:32]} 9. Nxg5 {[%clk 0:02:39]}  Qc7 {[%clk 0:02:18]} 10. Nxh7 {[%clk 0:02:27]}  cxd4 {[%clk 0:02:10]} 11. cxd4 {[%clk 0:02:27]}  Nxd4 {[%clk 0:01:53]} 12. exd4 {[%clk 0:02:22]}  Qxf4 {[%clk 0:00:00]} 13. Nf3 {[%clk 0:02:05]} 1-0


[Site "https://www.chess.com"]

[Event "Titled Tuesday Blitz May 16 Late 2023"]
[White "Hnydiuk, Aleksander"]
[Black "Gerbelli Neto, Eduardo"]
[WhiteFideId "1109057"]
[BlackFideId "2103281"]
[WhiteElo "2374"]
[BlackElo "2178"]
[Result "0-1"]
[Round "07"]
[TimeControl "180+2"]
[Date "2023.05.16"]
[WhiteClock "0:00:00"]
[BlackClock "0:00:52"]

1. d4 {[%clk 0:02:51]}  d5 {[%clk 0:02:59]} 2. c4 {[%clk 0:02:50]}  c6 {[%clk 0:03:00]} 3. Nc3 {[%clk 0:02:49]}  Nf6 {[%clk 0:03:00]} 4. Nf3 {[%clk 0:02:47]}  e6 {[%clk 0:03:00]} 5. e3 {[%clk 0:02:41]}  Nbd7 {[%clk 0:03:00]} 6. Qc2 {[%clk 0:02:40]}  Bd6 {[%clk 0:02:59]} 7. g4 {[%clk 0:02:40]}  Bb4 {[%clk 0:02:54]} 8. Bd2 {[%clk 0:02:36]}  Qe7 {[%clk 0:02:38]} 9. Bd3 {[%clk 0:02:33]}  dxc4 {[%clk 0:02:37]} 10. Bxc4 {[%clk 0:02:33]}  b5 {[%clk 0:02:37]} 11. Bd3 {[%clk 0:02:31]}  Bxc3 {[%clk 0:02:32]} 12. bxc3 {[%clk 0:02:30]}  Bb7 {[%clk 0:02:32]} 13. g5 {[%clk 0:02:25]}  Nd5 {[%clk 0:02:30]} 14. e4 {[%clk 0:02:25]}  N5b6 {[%clk 0:02:27]} 15. h4 {[%clk 0:02:22]}  f5 {[%clk 0:02:22]} 16. gxf6 {[%clk 0:01:35]}  Qxf6 {[%clk 0:02:05]} 17. Ng5 {[%clk 0:01:27]}  O-O {[%clk 0:02:02]} 18. f4 {[%clk 0:01:25]}  e5 {[%clk 0:01:34]} 19. O-O {[%clk 0:01:09]}  exd4 {[%clk 0:01:34]} 20. e5 {[%clk 0:01:06]}  Qh6 {[%clk 0:01:34]} 21. Bxh7+ {[%clk 0:00:46]}  Kh8 {[%clk 0:01:33]} 22. Kg2 {[%clk 0:00:39]}  c5+ {[%clk 0:01:30]} 23. Kg3 {[%clk 0:00:39]}  Nc4 {[%clk 0:01:20]} 24. Rae1 {[%clk 0:00:23]}  Ndb6 {[%clk 0:01:05]} 25. Bc1 {[%clk 0:00:18]}  Nd5 {[%clk 0:01:01]} 26. f5 {[%clk 0:00:16]}  Nde3 {[%clk 0:01:00]} 27. Bxe3 {[%clk 0:00:14]}  Nxe3 {[%clk 0:01:01]} 28. Rxe3 {[%clk 0:00:11]}  dxe3 {[%clk 0:01:02]} 29. Bg6 {[%clk 0:00:07]}  Bd5 {[%clk 0:00:59]} 30. Qc1 {[%clk 0:00:03]}  e2 {[%clk 0:00:53]} 31. Re1 {[%clk 0:00:02]}  Bc4 {[%clk 0:00:53]} 32. Qe3 {[%clk 0:00:00]}  Rad8 {[%clk 0:00:52]} 0-1


[Site "https://www.chess.com"]

[Event "Titled Tuesday Blitz May 16 Late 2023"]
[White "Xia, Brandon"]
[Black "Milovic, Aleksandra"]
[WhiteFideId "30921880"]
[BlackFideId "933988"]
[WhiteElo "1924"]
[BlackElo "2000"]
[Result "1-0"]
[Round "07"]
[TimeControl "180+2"]
[Date "2023.05.16"]
[WhiteClock "0:01:23"]
[BlackClock "0:01:07"]

1. b3 {[%clk 0:02:59]}  d5 {[%clk 0:02:57]} 2. Bb2 {[%clk 0:02:59]}  e6 {[%clk 0:02:56]} 3. e3 {[%clk 0:03:00]}  Nf6 {[%clk 0:02:56]} 4. Nf3 {[%clk 0:02:59]}  c5 {[%clk 0:02:56]} 5. Be2 {[%clk 0:02:58]}  Be7 {[%clk 0:02:53]} 6. O-O {[%clk 0:02:57]}  Nbd7 {[%clk 0:02:54]} 7. c3 {[%clk 0:02:57]}  O-O {[%clk 0:02:54]} 8. c4 {[%clk 0:02:57]}  b6 {[%clk 0:02:52]} 9. cxd5 {[%clk 0:02:56]}  exd5 {[%clk 0:02:51]} 10. d4 {[%clk 0:02:57]}  Bb7 {[%clk 0:02:50]} 11. Nc3 {[%clk 0:02:57]}  cxd4 {[%clk 0:02:47]} 12. Nxd4 {[%clk 0:02:57]}  Nc5 {[%clk 0:02:44]} 13. Bf3 {[%clk 0:02:55]}  Nce4 {[%clk 0:02:42]} 14. Nf5 {[%clk 0:02:48]}  Rc8 {[%clk 0:02:35]} 15. Rc1 {[%clk 0:02:28]}  Bb4 {[%clk 0:02:18]} 16. Qd4 {[%clk 0:02:00]}  Bxc3 {[%clk 0:02:06]} 17. Bxc3 {[%clk 0:01:58]}  Nxc3 {[%clk 0:02:03]} 18. Rxc3 {[%clk 0:01:59]}  Qd7 {[%clk 0:02:02]} 19. Bg4 {[%clk 0:01:34]}  Kh8 {[%clk 0:01:21]} 20. Bh3 {[%clk 0:01:27]}  Rxc3 {[%clk 0:01:13]} 21. Qxc3 {[%clk 0:01:25]}  Ne4 {[%clk 0:01:07]} 22. Qxg7# {[%clk 0:01:23]} 1-0


[Site "https://www.chess.com"]

[Event "Titled Tuesday Blitz May 16 Late 2023"]
[White "Torres Dominguez, David"]
[Black "Smiechu"]
[WhiteFideId "2220857"]
[WhiteElo "1999"]
[BlackElo "2273"]
[Result "1-0"]
[Round "07"]
[TimeControl "180+2"]
[Date "2023.05.16"]
[WhiteClock "0:01:07"]
[BlackClock "0:00:58"]

1. e4 {[%clk 0:03:00]}  c5 {[%clk 0:02:55]} 2. Nc3 {[%clk 0:03:00]}  g6 {[%clk 0:02:56]} 3. d4 {[%clk 0:02:58]}  cxd4 {[%clk 0:02:52]} 4. Qxd4 {[%clk 0:02:58]}  Nf6 {[%clk 0:02:49]} 5. Bf4 {[%clk 0:02:58]}  Nc6 {[%clk 0:02:48]} 6. Qd2 {[%clk 0:02:57]}  d6 {[%clk 0:02:37]} 7. O-O-O {[%clk 0:02:56]}  Bg7 {[%clk 0:02:37]} 8. Bh6 {[%clk 0:02:55]}  O-O {[%clk 0:02:33]} 9. h4 {[%clk 0:02:51]}  Bxh6 {[%clk 0:02:32]} 10. Qxh6 {[%clk 0:02:49]}  Ng4 {[%clk 0:02:32]} 11. Qd2 {[%clk 0:02:47]}  h5 {[%clk 0:02:27]} 12. f3 {[%clk 0:02:45]}  Nge5 {[%clk 0:02:27]} 13. g4 {[%clk 0:02:42]}  hxg4 {[%clk 0:02:27]} 14. h5 {[%clk 0:02:42]}  g5 {[%clk 0:02:23]} 15. Qxg5+ {[%clk 0:02:39]}  Kh7 {[%clk 0:02:23]} 16. f4 {[%clk 0:02:31]}  Rg8 {[%clk 0:02:17]} 17. Qh4 {[%clk 0:02:28]}  Nf3 {[%clk 0:02:11]} 18. Nxf3 {[%clk 0:02:21]}  gxf3 {[%clk 0:02:12]} 19. Bd3 {[%clk 0:02:21]}  e5 {[%clk 0:02:12]} 20. Qf2 {[%clk 0:02:11]}  Nd4 {[%clk 0:02:12]} 21. Nd5 {[%clk 0:01:59]}  Rg2 {[%clk 0:02:10]} 22. Qe3 {[%clk 0:01:55]}  Be6 {[%clk 0:02:00]} 23. c3 {[%clk 0:01:55]}  Qa5 {[%clk 0:01:47]} 24. Kb1 {[%clk 0:01:54]}  Nf5 {[%clk 0:01:11]} 25. Qxf3 {[%clk 0:01:42]}  Rg3 {[%clk 0:01:10]} 26. Qf2 {[%clk 0:01:28]}  Bxd5 {[%clk 0:01:03]} 27. exd5 {[%clk 0:01:23]}  Rxd3 {[%clk 0:01:04]} 28. Rxd3 {[%clk 0:01:23]}  e4 {[%clk 0:01:04]} 29. Rdd1 {[%clk 0:01:20]}  e3 {[%clk 0:01:03]} 30. Qc2 {[%clk 0:01:19]}  e2 {[%clk 0:01:00]} 31. Qxf5+ {[%clk 0:01:18]}  Kh8 {[%clk 0:01:00]} 32. Qf6+ {[%clk 0:01:18]}  Kh7 {[%clk 0:01:00]} 33. Rdg1 {[%clk 0:01:14]}  Rg8 {[%clk 0:00:59]} 34. Qxf7+ {[%clk 0:01:08]}  Kh6 {[%clk 0:00:58]} 35. Rg6+ {[%clk 0:01:07]}  Rxg6 {[%clk 0:00:58]} 36. Qxg6# {[%clk 0:01:07]} 1-0


[Site "https://www.chess.com"]

[Event "Titled Tuesday Blitz May 16 Late 2023"]
[White "Manu_ChessExcelsior"]
[Black "Dmitriev, Sergey"]
[BlackFideId "14101785"]
[WhiteElo "2050"]
[BlackElo "2132"]
[Result "1-0"]
[Round "07"]
[TimeControl "180+2"]
[Date "2023.05.16"]
[WhiteClock "0:00:01"]
[BlackClock "0:00:12"]

1. e4 {[%clk 0:03:00]}  e5 {[%clk 0:02:56]} 2. Nf3 {[%clk 0:03:00]}  Nc6 {[%clk 0:02:56]} 3. Bc4 {[%clk 0:02:59]}  Bc5 {[%clk 0:02:54]} 4. b4 {[%clk 0:02:59]}  Bb6 {[%clk 0:02:53]} 5. d4 {[%clk 0:02:44]}  Bxd4 {[%clk 0:02:38]} 6. Nxd4 {[%clk 0:02:36]}  Nxd4 {[%clk 0:02:37]} 7. O-O {[%clk 0:02:31]}  d6 {[%clk 0:02:30]} 8. Bb2 {[%clk 0:02:23]}  Nc6 {[%clk 0:02:27]} 9. b5 {[%clk 0:02:02]}  Nce7 {[%clk 0:02:24]} 10. f4 {[%clk 0:02:00]}  Be6 {[%clk 0:01:55]} 11. Be2 {[%clk 0:01:24]}  f6 {[%clk 0:01:50]} 12. Nc3 {[%clk 0:01:20]}  exf4 {[%clk 0:01:35]} 13. Rxf4 {[%clk 0:01:18]}  Ng6 {[%clk 0:01:35]} 14. Rf1 {[%clk 0:01:18]}  N8e7 {[%clk 0:01:32]} 15. Nd5 {[%clk 0:01:14]}  O-O {[%clk 0:01:21]} 16. Qd4 {[%clk 0:00:59]}  Ne5 {[%clk 0:01:12]} 17. Rad1 {[%clk 0:00:54]}  Nxd5 {[%clk 0:01:00]} 18. exd5 {[%clk 0:00:52]}  Bf7 {[%clk 0:01:00]} 19. c4 {[%clk 0:00:41]}  Qd7 {[%clk 0:00:57]} 20. Rc1 {[%clk 0:00:41]}  b6 {[%clk 0:00:55]} 21. Rc3 {[%clk 0:00:41]}  Rae8 {[%clk 0:00:54]} 22. Rg3 {[%clk 0:00:41]}  Ng6 {[%clk 0:00:54]} 23. Bd3 {[%clk 0:00:41]}  Qe7 {[%clk 0:00:42]} 24. h4 {[%clk 0:00:23]}  Qe5 {[%clk 0:00:40]} 25. Qf2 {[%clk 0:00:21]}  Qh5 {[%clk 0:00:38]} 26. Rf3 {[%clk 0:00:14]}  Qxh4 {[%clk 0:00:34]} 27. Qc2 {[%clk 0:00:11]}  Qg5 {[%clk 0:00:30]} 28. Rf5 {[%clk 0:00:08]}  Qg4 {[%clk 0:00:29]} 29. Qc3 {[%clk 0:00:08]}  Ne5 {[%clk 0:00:25]} 30. Bc2 {[%clk 0:00:05]}  Ng6 {[%clk 0:00:24]} 31. Rxf6 {[%clk 0:00:03]}  Re2 {[%clk 0:00:15]} 32. R6f2 {[%clk 0:00:01]}  Rxf2 {[%clk 0:00:12]} 33. Qxg7# {[%clk 0:00:01]} 1-0


[Site "https://www.chess.com"]